fUSD/lending_fUSD_20260427
["ID","MTS","AMOUNT","RATE_DAILY","PERIOD"]
[421239846,1777287047295,-500.0,0.00027507,2]
[421239847,1777287047304,-1264.003,0.0002754,2]
[421239848,1777287047313,-500.0,0.00027562,2]
[421239849,1777287047323,-500.0,0.00027617,2]
[421239850,1777287047332,-500.0,0.00027672,2]
[421239851,1777287047342,-500.0,0.00027727,2]
[421239852,1777287047351,-500.0,0.00027782,2]
[421239853,1777287047360,-500.0,0.00027837,2]
[421239854,1777287047369,-500.0,0.00027892,2]
[421239855,1777287047378,-500.0,0.00027947,2]
[421239856,1777287047390,-297.59,0.00028116,7]
[421239857,1777287047399,-297.59,0.00028156,7]
[421239858,1777287047409,-297.59,0.00028311,7]
[421239859,1777287047418,-549.017,0.00028368,2]
[421239860,1777287047427,-356.6728112,0.00028855,2]
[421239861,1777287047436,-297.59,0.00029224,30]
[421239862,1777287047445,-506.0,0.00029877,2]
[421239863,1777287047454,-207.0,0.0003,14]
[421239864,1777287047463,-173.0,0.0003,14]
[421239865,1777287047472,-297.59,0.00030137,2]
[421239866,1777287047481,-300.0,0.00030767,2]
[421239867,1777287047491,-300.0,0.00030767,2]
[421239868,1777287047500,-300.0,0.00030767,2]
[421239869,1777287047509,-300.0,0.00030767,2]
[421239870,1777287047518,-300.0,0.00030767,2]
[421239871,1777287047528,-300.0,0.00030767,2]
[421239872,1777287047537,-300.0,0.00030767,2]
[421239873,1777287047546,-300.0,0.00030767,2]
[421239874,1777287047556,-300.0,0.00030767,2]
[421239875,1777287047565,-300.0,0.00030767,2]
[421239876,1777287047574,-300.0,0.00030767,2]
[421239877,1777287047583,-300.0,0.00030767,2]
[421239878,1777287047593,-300.0,0.00030767,2]
[421239879,1777287047602,-300.0,0.00030767,2]
[421239880,1777287047611,-300.0,0.00030767,2]
[421239881,1777287047619,-300.0,0.00030767,2]
[421239882,1777287047628,-300.0,0.00030767,2]
[421239883,1777287047638,-300.0,0.00030767,2]
[421239884,1777287047647,-300.0,0.00030767,2]
[421239885,1777287047656,-300.0,0.00030767,2]
[421239886,1777287047665,-300.0,0.00030767,2]
[421239887,1777287047674,-300.0,0.00030767,2]
[421239888,1777287047683,-300.0,0.00030767,2]
[421239889,1777287047692,-300.0,0.00030767,2]
[421239890,1777287047701,-300.0,0.00030767,2]
[421239891,1777287047710,-300.0,0.00030767,2]
[421239892,1777287047719,-300.0,0.00030767,2]
[421239893,1777287047728,-300.0,0.00030767,2]
[421239894,1777287047737,-300.0,0.00030767,2]
[421239895,1777287047746,-300.0,0.00030767,2]
[421239896,1777287047755,-300.0,0.00030767,2]
[421239897,1777287047765,-300.0,0.00030767,2]
[421239898,1777287047774,-300.0,0.00030767,2]
[421239899,1777287047783,-300.0,0.00030767,2]
[421239900,1777287047792,-300.0,0.00030767,2]
[421239901,1777287047801,-300.0,0.00030767,2]
[421239902,1777287047810,-300.0,0.00030767,2]
[421239903,1777287047819,-300.0,0.00030767,2]
[421239904,1777287047837,-300.0,0.00030767,2]
[421239905,1777287047848,-300.0,0.00030767,2]
[421239906,1777287047858,-300.0,0.00030767,2]
[421239907,1777287047867,-300.0,0.00030767,2]
[421239908,1777287047876,-300.0,0.00030767,2]
[421239909,1777287047886,-300.0,0.00030767,2]
[421239910,1777287047896,-300.0,0.00030767,2]
[421239911,1777287047905,-300.0,0.00030767,2]
[421239912,1777287047915,-300.0,0.00030767,2]
[421239913,1777287047925,-300.0,0.00030767,2]
[421239914,1777287047934,-300.0,0.00030767,2]
[421239915,1777287047943,-300.0,0.00030767,2]
[421239916,1777287047953,-300.0,0.00030767,2]
[421239917,1777287047962,-300.0,0.00030767,2]
[421239918,1777287047971,-300.0,0.00030767,2]
[421239919,1777287047981,-300.0,0.00030767,2]
[421239920,1777287047991,-300.0,0.00030767,2]
[421239921,1777287048000,-300.0,0.00030767,2]
[421239922,1777287048011,-300.0,0.00030767,2]
[421239923,1777287048020,-300.0,0.00030767,2]
[421239924,1777287048031,-300.0,0.00030767,2]
[421239925,1777287048040,-300.0,0.00030767,2]
[421239926,1777287048050,-6009.96,0.000309,7]
[421239927,1777287048059,-162.27045424,0.000309,7]
[421239928,1777287048069,-160.0,0.000309,7]
[421239929,1777287048240,-297.59,0.0003105,7]
[421239930,1777287048250,-549.017,0.0003112,2]
[421239931,1777287048259,-221.0,0.00031178,30]
[421239932,1777287048268,-156.0,0.00031178,30]
[421239933,1777287048277,-313.0,0.00031178,30]
[421239934,1777287048286,-401.0,0.00031178,30]
[421239935,1777287048295,-451.0,0.00031247,30]
[421239936,1777287048304,-159.0,0.00031247,30]
[421239937,1777287048313,-153.0,0.00031247,30]
[421239938,1777287048322,-1182.0,0.00031247,30]
[421239939,1777287048331,-159.0,0.00031248,30]
[421239940,1777287048340,-158.0,0.00031248,30]
[421239941,1777287048349,-506.0,0.00031443,3]
[421239942,1777287048358,-173.0,0.00031644,14]
[421239943,1777287048367,-600.0,0.00031687,60]
[421239944,1777287048376,-600.0,0.00031687,60]
[421239945,1777287048385,-600.0,0.00031687,60]
[421239946,1777287048393,-600.0,0.00031687,60]
[421239947,1777287048402,-600.0,0.00031687,60]
[421239948,1777287048411,-600.0,0.00031687,60]
[421239949,1777287048420,-600.0,0.00031687,60]
[421239950,1777287048430,-600.0,0.00031687,60]
[421239951,1777287048439,-600.0,0.00031687,60]
[421239952,1777287048447,-600.0,0.00031687,60]
[421239953,1777287048456,-600.0,0.00031687,60]
[421239954,1777287048465,-600.0,0.00031687,60]
[421239955,1777287048474,-600.0,0.00031687,60]
[421239956,1777287048483,-600.0,0.00031687,60]
[421239957,1777287048492,-600.0,0.00031687,60]
[421239958,1777287048502,-600.0,0.00031687,60]
[421239959,1777287048510,-600.0,0.00031687,60]
[421239960,1777287048520,-600.0,0.00031687,60]
[421239961,1777287048529,-600.0,0.00031687,60]
[421239962,1777287048538,-500.0,0.00031687,60]
[421239963,1777287048547,-600.0,0.00031687,60]
[421239964,1777287048556,-500.0,0.00031687,60]
[421239965,1777287048565,-600.0,0.00031687,60]
[421239966,1777287048574,-500.0,0.00031687,60]
[421239967,1777287048583,-600.0,0.00031687,60]
[421239968,1777287048592,-212.3117556,0.00031687,60]
[421239969,1777287048601,-500.0,0.00031687,60]
[421239970,1777287048611,-600.0,0.00031687,60]
[421239971,1777287048620,-500.0,0.00031687,60]
[421239972,1777287048629,-760.6990237,0.00031687,60]
[421239973,1777287048638,-600.0,0.00031687,60]
[421239974,1777287048647,-600.0,0.00031687,60]
[421239975,1777287048656,-600.0,0.00031687,60]
[421239976,1777287048665,-600.0,0.00031687,60]
[421239977,1777287048674,-600.0,0.00031687,60]
[421239978,1777287048683,-1030.183488,0.00031687,60]
[421239979,1777287048692,-297.59,0.0003189,30]
[421239980,1777287048701,-877.76433677,0.00031922,60]
[421239981,1777287048710,-6009.96,0.000321,7]
[421239982,1777287048719,-1011.34,0.000321,14]
[421239983,1777287048728,-198.23793216,0.00032155,2]
[421239984,1777287048737,-221.0,0.00032178,30]
[421239985,1777287048746,-156.0,0.00032178,30]
[421239986,1777287048755,-313.0,0.00032178,30]
[421239987,1777287048763,-401.0,0.00032178,30]
[421239988,1777287048772,-150.0,0.00032219,2]
[421239989,1777287048781,-451.0,0.00032247,30]
[421239990,1777287048790,-159.0,0.00032247,30]
[421239991,1777287048799,-153.0,0.00032247,30]
[421239992,1777287048808,-1182.0,0.00032247,30]
[421239993,1777287048817,-159.0,0.00032248,30]
[421239994,1777287048826,-158.0,0.00032248,30]
[421239995,1777287048836,-300.0,0.000328,21]
[421239996,1777287048845,-900.0,0.000328,11]
[421239997,1777287048853,-2000.0,0.0003282,35]
[421239998,1777287048862,-2000.0,0.0003282,35]
[421239999,1777287048872,-2000.0,0.0003282,35]
[421240000,1777287048881,-2000.0,0.0003282,35]
[421240001,1777287048890,-150.0,0.00032876,2]
[421240002,1777287048899,-3365.0,0.00032876,30]
[421240003,1777287048909,-470.0,0.00032876,30]
[421240004,1777287048918,-500.0,0.00032876,30]
[421240005,1777287048927,-500.0,0.00032876,90]
[421240006,1777287048937,-408.7798187,0.00032876,2]
[421240007,1777287048946,-500.0,0.00032876,30]
[421240008,1777287048955,-500.0,0.00032876,2]
[421240009,1777287048963,-500.0,0.00032876,30]
[421240010,1777287048972,-1649.9,0.00032876,30]
[421240011,1777287048982,-1799.8,0.00032876,30]
[421240012,1777287048992,-1560.45,0.00032876,10]
[421240013,1777287049001,-831.75,0.00032876,14]
[421240014,1777287049011,-500.0,0.00032876,14]
[421240015,1777287049020,-500.0,0.00032876,30]
[421240016,1777287049029,-500.0,0.00032876,21]
[421240017,1777287049039,-500.17654306,0.00032876,30]
[421240018,1777287049048,-500.0,0.00032876,90]
[421240019,1777287049057,-500.0,0.00032876,7]
[421240020,1777287049066,-617.84032718,0.00032876,75]
[421240021,1777287049075,-500.0,0.00032876,60]
[421240022,1777287049084,-618.59,0.00032876,30]
[421240023,1777287049094,-500.0,0.00032876,14]
[421240024,1777287049102,-500.0,0.00032876,30]
[421240025,1777287049112,-500.0,0.00032876,60]
[421240026,1777287049121,-500.0,0.00032876,14]
[421240027,1777287049130,-500.0,0.00032876,12]
[421240028,1777287049139,-500.0,0.00032876,30]
[421240029,1777287049148,-814.23,0.00032876,7]
[421240030,1777287049157,-500.0,0.00032876,16]
[421240031,1777287049167,-500.0,0.00032876,7]
[421240032,1777287049176,-503.31486689,0.00032876,30]
[421240033,1777287049186,-500.0,0.00032876,3]
[421240034,1777287049195,-1044.44,0.00032876,7]
[421240035,1777287049205,-625.44,0.00032876,5]
[421240036,1777287049214,-500.0,0.00032876,30]
[421240037,1777287049223,-500.0,0.00032876,30]
[421240038,1777287049232,-10627.51,0.00032876,11]
[421240039,1777287049241,-512.77851607,0.00032876,30]
[421240040,1777287049250,-9821.09,0.00032876,14]
[421240041,1777287049259,-2650.84,0.00032876,2]
[421240042,1777287049268,-500.0,0.00032876,30]
[421240043,1777287049278,-2198.73,0.00032876,31]
[421240044,1777287049287,-153.85,0.00032877,120]
[421240045,1777287049296,-153.85,0.00032877,120]
[421240046,1777287049305,-500.0,0.00032877,120]
[421240047,1777287049315,-1334.22512623,0.00032877,2]
[421240048,1777287049324,-200.0,0.00032877,2]
[421240049,1777287049333,-160.0,0.0003288,30]
[421240050,1777287049342,-160.0,0.0003288,30]
[421240051,1777287049351,-200.0,0.00032884,10]
[421240052,1777287049361,-200.0,0.00032885,10]
[421240053,1777287049370,-152.0,0.00032892,30]
[421240054,1777287049379,-1100.0,0.000329,12]
[421240055,1777287049388,-152.0,0.00032925,30]
[421240056,1777287049397,-1011.34,0.00033,14]
[421240057,1777287049406,-506.0,0.00033009,5]
[421240058,1777287049415,-859.92294208,0.0003305,2]
[421240059,1777287049424,-500.0,0.00033149,120]
[421240060,1777287049434,-378.73094617,0.00033149,120]
[421240061,1777287049444,-5510.884336,0.0003315,120]
[421240062,1777287049453,-406.931409,0.0003315,120]
[421240063,1777287049462,-325.762595,0.0003315,120]
[421240064,1777287049471,-342.964341,0.0003315,120]
[421240065,1777287049480,-2698.281126,0.0003315,120]
[421240066,1777287049489,-500.0,0.0003315,120]
[421240067,1777287049499,-500.0,0.0003315,120]
[421240068,1777287049508,-500.0,0.0003315,30]
[421240069,1777287049516,-500.0,0.0003315,90]
[421240070,1777287049525,-500.0,0.0003315,120]
[421240071,1777287049534,-500.0,0.0003315,120]
[421240072,1777287049543,-500.0,0.0003315,120]
[421240073,1777287049552,-500.0,0.0003315,120]
[421240074,1777287049561,-276.16472001,0.0003315,120]
[421240075,1777287049570,-500.0,0.0003315,120]
[421240076,1777287049579,-500.0,0.0003315,120]
[421240077,1777287049588,-467.79156925,0.0003315,120]
[421240078,1777287049597,-500.0,0.0003315,30]
[421240079,1777287049606,-500.0,0.0003315,120]
[421240080,1777287049615,-500.0,0.0003315,120]
[421240081,1777287049624,-500.0,0.0003315,120]
[421240082,1777287049633,-500.0,0.0003315,120]
[421240083,1777287049642,-180.7816475,0.0003315,120]
[421240084,1777287049651,-500.0,0.0003315,120]
[421240085,1777287049660,-511.10004236,0.0003315,120]
[421240086,1777287049668,-501.49061075,0.0003315,120]
[421240087,1777287049678,-500.0,0.0003315,120]
[421240088,1777287049686,-500.0,0.0003315,120]
[421240089,1777287049695,-500.0,0.0003315,120]
[421240090,1777287049705,-863.36,0.0003315,120]
[421240091,1777287049715,-500.0,0.0003315,2]
[421240092,1777287049724,-500.0,0.0003315,120]
[421240093,1777287049733,-599.06,0.0003315,120]
[421240094,1777287049743,-500.0,0.0003315,120]
[421240095,1777287049752,-500.0,0.0003315,120]
[421240096,1777287049761,-500.0,0.0003315,120]
[421240097,1777287049770,-640.83,0.0003315,120]
[421240098,1777287049779,-500.0,0.0003315,120]
[421240099,1777287049788,-500.0,0.0003315,120]
[421240100,1777287049797,-500.0,0.0003315,120]
[421240101,1777287049807,-500.0,0.0003315,120]
[421240102,1777287049816,-500.0,0.0003315,120]
[421240103,1777287049825,-1211.95,0.0003315,120]
[421240104,1777287049834,-565.53,0.0003315,120]
[421240105,1777287049843,-500.0,0.0003315,120]
[421240106,1777287049852,-553.4,0.0003315,120]
[421240107,1777287049861,-500.0,0.0003315,120]
[421240108,1777287049870,-715.07,0.0003315,120]
[421240109,1777287049879,-500.0,0.0003315,120]
[421240110,1777287049887,-500.0,0.0003315,120]
[421240111,1777287049896,-938.55,0.0003315,120]
[421240112,1777287049905,-1090.36,0.0003315,120]
[421240113,1777287049915,-634.95,0.0003315,120]
[421240114,1777287049924,-500.0,0.0003315,120]
[421240115,1777287049933,-500.0,0.0003315,120]
[421240116,1777287049943,-500.0,0.0003315,120]
[421240117,1777287049952,-500.0,0.0003315,120]
[421240118,1777287049961,-500.0,0.0003315,120]
[421240119,1777287049970,-528.14,0.0003315,120]
[421240120,1777287049979,-500.0,0.0003315,120]
[421240121,1777287049988,-500.0,0.0003315,120]
[421240122,1777287049997,-500.0,0.0003315,120]
[421240123,1777287050006,-1072.38,0.0003315,120]
[421240124,1777287050015,-1314.31,0.0003315,120]
[421240125,1777287050024,-703.47,0.0003315,120]
[421240126,1777287050033,-500.0,0.0003315,120]
[421240127,1777287050042,-243.07149525,0.0003315,120]
[421240128,1777287050051,-500.0,0.0003315,120]
[421240129,1777287050060,-500.0,0.0003315,120]
[421240130,1777287050069,-500.0,0.0003315,120]
[421240131,1777287050078,-500.0,0.0003315,120]
[421240132,1777287050087,-500.0,0.0003315,120]
[421240133,1777287050096,-500.0,0.0003315,120]
[421240134,1777287050105,-500.0,0.0003315,120]
[421240135,1777287050115,-500.0,0.0003315,120]
[421240136,1777287050124,-516.81,0.0003315,120]
[421240137,1777287050134,-500.0,0.0003315,30]
[421240138,1777287050143,-2357.31,0.0003315,120]
[421240139,1777287050152,-722.01,0.0003315,120]
[421240140,1777287050161,-500.0,0.0003315,120]
[421240141,1777287050170,-500.0,0.0003315,120]
[421240142,1777287050179,-500.0,0.0003315,120]
[421240143,1777287050188,-500.0,0.0003315,120]
[421240144,1777287050198,-500.0,0.0003315,120]
[421240145,1777287050207,-500.0,0.0003315,120]
[421240146,1777287050216,-500.0,0.0003315,120]
[421240147,1777287050225,-500.0,0.0003315,120]
[421240148,1777287050234,-1649.9,0.0003315,30]
[421240149,1777287050243,-527.75,0.0003315,120]
[421240150,1777287050254,-500.0,0.0003315,120]
[421240151,1777287050263,-500.0,0.0003315,120]
[421240152,1777287050272,-264.67,0.0003315,120]
[421240153,1777287050281,-500.0,0.0003315,120]
[421240154,1777287050290,-500.0,0.0003315,120]
[421240155,1777287050300,-663.98,0.0003315,120]
[421240156,1777287050308,-752.81,0.0003315,120]
[421240157,1777287050318,-696.22,0.0003315,120]
[421240158,1777287050326,-500.0,0.0003315,120]
[421240159,1777287050336,-500.0,0.0003315,120]
[421240160,1777287050345,-1446.95,0.0003315,120]
[421240161,1777287050355,-964.96,0.0003315,120]
[421240162,1777287050364,-202.86418558,0.0003315,120]
[421240163,1777287050373,-500.0,0.0003315,120]
[421240164,1777287050382,-500.0,0.0003315,120]
[421240165,1777287050391,-500.0,0.0003315,120]
[421240166,1777287050400,-500.0,0.0003315,120]
[421240167,1777287050409,-283.09419749,0.0003315,120]
[421240168,1777287050419,-529.41,0.0003315,120]
[421240169,1777287050428,-500.0,0.0003315,120]
[421240170,1777287050437,-500.0,0.0003315,120]
[421240171,1777287050446,-500.56418319,0.0003315,120]
[421240172,1777287050456,-500.0,0.0003315,120]
[421240173,1777287050465,-159.797385,0.0003315,120]
[421240174,1777287050474,-500.0,0.0003315,120]
[421240175,1777287050482,-500.0,0.0003315,120]
[421240176,1777287050491,-500.0,0.0003315,120]
[421240177,1777287050501,-500.0,0.0003315,120]
[421240178,1777287050510,-500.0,0.0003315,120]
[421240179,1777287050519,-1077.32,0.0003315,120]
[421240180,1777287050528,-501.10566436,0.0003315,120]
[421240181,1777287050537,-1000.0,0.0003315,120]
[421240182,1777287050546,-505.32214563,0.0003315,120]
[421240183,1777287050555,-765.4,0.0003315,120]
[421240184,1777287050565,-949.83,0.0003315,120]
[421240185,1777287050574,-599.76,0.0003315,120]
[421240186,1777287050583,-500.0,0.0003315,120]
[421240187,1777287050592,-500.0,0.0003315,120]
[421240188,1777287050601,-500.0,0.0003315,120]
[421240189,1777287050610,-500.0,0.0003315,120]
[421240190,1777287050619,-500.0,0.0003315,120]
[421240191,1777287050629,-500.0,0.0003315,120]
[421240192,1777287050638,-439.02739869,0.0003315,120]
[421240193,1777287050647,-500.0,0.0003315,120]
[421240194,1777287050656,-500.0,0.0003315,120]
[421240195,1777287050666,-500.0,0.0003315,120]
[421240196,1777287050675,-500.0,0.0003315,120]
[421240197,1777287050685,-510.84641636,0.0003315,120]
[421240198,1777287050694,-812.99,0.0003315,120]
[421240199,1777287050703,-1319.91,0.0003315,120]
[421240200,1777287050712,-500.0,0.0003315,120]
[421240201,1777287050721,-559.35,0.0003315,120]
[421240202,1777287050730,-1706.39,0.0003315,120]
[421240203,1777287050739,-500.0,0.0003315,120]
[421240204,1777287050748,-500.0,0.0003315,120]
[421240205,1777287050758,-500.0,0.0003315,120]
[421240206,1777287050767,-500.0,0.0003315,120]
[421240207,1777287050776,-500.0,0.0003315,120]
[421240208,1777287050785,-500.0,0.0003315,120]
[421240209,1777287050794,-500.0,0.0003315,120]
[421240210,1777287050803,-668.63,0.0003315,120]
[421240211,1777287050812,-500.0,0.0003315,120]
[421240212,1777287050821,-358.88527952,0.0003315,120]
[421240213,1777287050831,-500.0,0.0003315,120]
[421240214,1777287050840,-203.465704,0.0003315,120]
[421240215,1777287050849,-162.881307,0.0003315,120]
[421240216,1777287050859,-1799.8,0.0003315,30]
[421240217,1777287050868,-2310.82,0.0003315,120]
[421240218,1777287050878,-500.0,0.0003315,120]
[421240219,1777287050887,-951.83,0.0003315,120]
[421240220,1777287050896,-500.0,0.0003315,120]
[421240221,1777287050906,-500.0,0.0003315,120]
[421240222,1777287050915,-500.0,0.0003315,120]
[421240223,1777287050924,-500.0,0.0003315,120]
[421240224,1777287050933,-500.0,0.0003315,120]
[421240225,1777287050942,-500.0,0.0003315,120]
[421240226,1777287050951,-500.0,0.0003315,120]
[421240227,1777287050962,-500.0,0.0003315,120]
[421240228,1777287050971,-691.55,0.0003315,120]
[421240229,1777287050980,-500.0,0.0003315,120]
[421240230,1777287050989,-822.42,0.0003315,120]
[421240231,1777287050998,-500.0,0.0003315,120]
[421240232,1777287051007,-500.0,0.0003315,120]
[421240233,1777287051017,-500.0,0.0003315,120]
[421240234,1777287051026,-500.0,0.0003315,120]
[421240235,1777287051037,-690.22,0.0003315,120]
[421240236,1777287051047,-1041.51,0.0003315,120]
[421240237,1777287051056,-500.0,0.0003315,120]
[421240238,1777287051065,-500.0,0.0003315,120]
[421240239,1777287051074,-817.53,0.0003315,120]
[421240240,1777287051084,-500.0,0.0003315,120]
[421240241,1777287051093,-500.0,0.0003315,120]
[421240242,1777287051103,-500.0,0.0003315,120]
[421240243,1777287051112,-812.8,0.0003315,120]
[421240244,1777287051122,-500.0,0.0003315,120]
[421240245,1777287051131,-500.0,0.0003315,120]
[421240246,1777287051141,-500.0,0.0003315,120]
[421240247,1777287051151,-894.99,0.0003315,120]
[421240248,1777287051160,-1018.47,0.0003315,120]
[421240249,1777287051169,-500.0,0.0003315,120]
[421240250,1777287051179,-1560.45,0.0003315,10]
[421240251,1777287051188,-500.0,0.0003315,120]
[421240252,1777287051197,-654.65,0.0003315,120]
[421240253,1777287051206,-500.0,0.0003315,120]
[421240254,1777287051215,-500.0,0.0003315,120]
[421240255,1777287051224,-500.0,0.0003315,120]
[421240256,1777287051233,-500.0,0.0003315,120]
[421240257,1777287051242,-770.15,0.0003315,120]
[421240258,1777287051252,-153.61241942,0.0003315,7]
[421240259,1777287051262,-500.0,0.0003315,120]
[421240260,1777287051271,-747.23,0.0003315,120]
[421240261,1777287051280,-592.21,0.0003315,120]
[421240262,1777287051289,-500.0,0.0003315,120]
[421240263,1777287051299,-1047.65,0.0003315,120]
[421240264,1777287051308,-500.0,0.0003315,120]
[421240265,1777287051317,-500.0,0.0003315,120]
[421240266,1777287051326,-500.0,0.0003315,120]
[421240267,1777287051336,-500.0,0.0003315,120]
[421240268,1777287051346,-500.0,0.0003315,120]
[421240269,1777287051355,-500.0,0.0003315,120]
[421240270,1777287051364,-500.0,0.0003315,120]
[421240271,1777287051373,-548.93,0.0003315,120]
[421240272,1777287051382,-500.0,0.0003315,120]
[421240273,1777287051391,-500.0,0.0003315,120]
[421240274,1777287051400,-500.0,0.0003315,120]
[421240275,1777287051409,-500.0,0.0003315,120]
[421240276,1777287051418,-500.0,0.0003315,120]
[421240277,1777287051428,-500.0,0.0003315,120]
[421240278,1777287051437,-1885.25,0.0003315,120]
[421240279,1777287051446,-500.0,0.0003315,120]
[421240280,1777287051455,-1242.85,0.0003315,120]
[421240281,1777287051464,-632.88,0.0003315,120]
[421240282,1777287051474,-810.82,0.0003315,120]
[421240283,1777287051483,-696.25,0.0003315,120]
[421240284,1777287051492,-500.0,0.0003315,120]
[421240285,1777287051503,-500.0,0.0003315,120]
[421240286,1777287051512,-500.0,0.0003315,120]
[421240287,1777287051521,-227.89691536,0.0003315,120]
[421240288,1777287051533,-500.0,0.0003315,120]
[421240289,1777287051543,-500.0,0.0003315,120]
[421240290,1777287051552,-500.0,0.0003315,120]
[421240291,1777287051562,-500.0,0.0003315,120]
[421240292,1777287051571,-500.0,0.0003315,120]
[421240293,1777287051580,-1579.01,0.0003315,120]
[421240295,1777287051590,-500.0,0.0003315,120]
[421240296,1777287051599,-500.0,0.0003315,120]
[421240297,1777287051608,-601.37,0.0003315,120]
[421240298,1777287051617,-1456.44,0.0003315,120]
[421240299,1777287051626,-595.98,0.0003315,120]
[421240300,1777287051635,-1572.92,0.0003315,120]
[421240301,1777287051644,-500.0,0.0003315,120]
[421240302,1777287051653,-265.42580145,0.0003315,120]
[421240303,1777287051663,-500.0,0.0003315,120]
[421240304,1777287051672,-1223.21,0.0003315,120]
[421240305,1777287051682,-500.0,0.0003315,120]
[421240306,1777287051691,-500.0,0.0003315,120]
[421240307,1777287051700,-987.31,0.0003315,120]
[421240308,1777287051709,-500.0,0.0003315,120]
[421240309,1777287051718,-500.0,0.0003315,120]
[421240310,1777287051727,-685.94,0.0003315,120]
[421240311,1777287051736,-996.26,0.0003315,120]
[421240312,1777287051746,-500.0,0.0003315,120]
[421240313,1777287051755,-500.0,0.0003315,120]
[421240314,1777287051764,-977.11,0.0003315,120]
[421240315,1777287051774,-1114.4,0.0003315,120]
[421240316,1777287051783,-922.87,0.0003315,120]
[421240317,1777287051792,-500.0,0.0003315,120]
[421240318,1777287051801,-694.64,0.0003315,120]
[421240319,1777287051810,-876.6,0.0003315,120]
[421240320,1777287051820,-2804.65,0.0003315,120]
[421240321,1777287051829,-453.5,0.0003315,120]
[421240322,1777287051838,-1292.17,0.0003315,120]
[421240323,1777287051847,-500.0,0.0003315,120]
[421240324,1777287051856,-500.0,0.0003315,120]
[421240325,1777287051865,-500.0,0.0003315,120]
[421240326,1777287051875,-500.0,0.0003315,120]
[421240327,1777287051884,-831.75,0.0003315,14]
[421240328,1777287051894,-500.0,0.0003315,120]
[421240330,1777287051903,-500.0,0.0003315,14]
[421240331,1777287051912,-500.0,0.0003315,30]
[421240332,1777287051921,-695.08,0.0003315,120]
[421240333,1777287051930,-975.03,0.0003315,120]
[421240334,1777287051939,-500.0,0.0003315,120]
[421240335,1777287051948,-500.0,0.0003315,120]
[421240336,1777287051958,-500.0,0.0003315,120]
[421240337,1777287051967,-667.25,0.0003315,120]
[421240338,1777287051977,-500.0,0.0003315,120]
[421240339,1777287051986,-500.0,0.0003315,120]
[421240340,1777287051995,-628.0696509,0.0003315,21]
[421240341,1777287052005,-514.22,0.0003315,120]
[421240342,1777287052014,-500.0,0.0003315,120]
[421240343,1777287052024,-500.0,0.0003315,120]
[421240344,1777287052034,-500.0,0.0003315,120]
[421240345,1777287052043,-809.84,0.0003315,120]
[421240346,1777287052053,-500.0,0.0003315,120]
[421240347,1777287052063,-808.81,0.0003315,120]